Cogmind - Beta 13 @@@ ROGUE MODE // 2024.07.24 @ 11:21:09 Player: Beef Result: Destroyed by G-34 Mercenary with Small Laser Performance ------------- Evolutions (1) 500 Regions Visited (2) 400 Robots Destroyed (54) 270 Value Destroyed (1478) 1478 Prototype IDs (6) 120 Alien Tech Used (0) 0 Bonus (20) 20 TOTAL SCORE: 2788 Bonus ------- High Alert Combat Kills 55 Friendly Fire -35 Cogmind --------- Core Integrity 0/400 Matter 300/300 Energy 158/265 System Corruption 0% Temperature Warning (363) Movement Walking (190) Ox1 Location -9/Materials Parts ------- > --- POWER (1) -------- Improved Ion Engine > --- PROPULSION (2) --- Improved Aluminum Leg > --- UTILITY (4) ------ Improved Heat Sink Small Storage Unit Signal Interpreter Seismic Detector > --- WEAPON (2) ------- Advanced Beam Cannon Advanced Beam Cannon > --- INVENTORY (8) ---- Aluminum Leg Aluminum Leg Large Storage Unit Structural Scanner Visual Processing Unit Signal Interpreter Hacking Suite Peak State ------------ > --- POWER ------------ Improved Ion Engine > --- PROPULSION ------- Improved Aluminum Leg Improved Aluminum Leg > --- UTILITY ---------- Improved Heat Sink Small Storage Unit Signal Interpreter Seismic Detector > --- WEAPON ----------- Advanced Beam Cannon Advanced Beam Cannon > --- INVENTORY -------- Aluminum Leg Aluminum Leg Large Storage Unit Structural Scanner Visual Processing Unit Signal Interpreter Hacking Suite [Rating: 19] Favorites ----------- Power Ion Engine Engine Ion Engine Propulsion Aluminum Leg Treads Light Treads Leg Aluminum Leg Flight Unit Improved Flight Unit Utility Signal Interpreter Device Seismic Detector Storage Small Storage Unit Processor Signal Interpreter Weapon Improved Medium Laser Energy Gun Improved Medium Laser Energy Cannon Advanced Beam Cannon Ballistic Gun Assault Rifle Launcher Rocket Launcher Build | -11 -10 -9 ------- Run | Yrd Mat Mat Slots Evolved 2 | . . 2 Power . | . . . Propulsion . | . . . Utility 2 | . . 2 Weapon . | . . . Parts Attached 47 | 6 3 38 Power 6 | 1 . 5 Engine 6 | 1 . 5 Core . | . . . Reactor . | . . . Propulsion 17 | 2 . 15 Treads 2 | 2 . . Leg 14 | . . 14 Wheel . | . . . Hover . | . . . Flight 1 | . . 1 Utility 12 | 1 1 10 Device 7 | . . 7 Storage 3 | 1 1 1 Processor 2 | . . 2 Hackware . | . . . Protection . | . . . Artifact . | . . . Weapon 12 | 2 2 8 Energy Gun 4 | 1 . 3 Energy Cannon 2 | . . 2 Ballistic Gun 5 | 1 2 2 Ballistic Cannon . | . . . Launcher 1 | . . 1 Special Weapon . | . . . Impact Weapon . | . . . Slashing Weapon . | . . . Piercing Weapon . | . . . Special Melee Weapon . | . . . Unidentified Prototypes 2 | . . 2 Parts Lost 17 | . 1 16 Power 4 | . . 4 Propulsion 5 | . . 5 Utility 3 | . . 3 Weapon 5 | . 1 4 Highest Loss Streak 7 | . 1 7 To Critical Strikes . | . . . Average Slot Usage (%) 88 | . 90 88 Engine 9 | . 14 8 Treads 9 | . 28 5 Leg 12 | . . 15 Device 12 | . . 15 Storage 12 | . 19 11 Processor 7 | . . 9 Energy Gun 14 | . 14 14 Ballistic Gun 7 | . 14 6 Naked Turns . | . . . Heaviest Build 33 | 12 33 33 Greatest Support 40 | 40 40 40 Greatest Overweight (x) 8 | . . 8 Average Overweight (x) . | . . . Largest Inventory Capacity 15 | 8 15 15 Average Capacity 11 | 6 10 12 Most Carried 11 | 2 4 11 Average Carried 5 | . 2 6 Final Capacity 15 | 8 15 8 Final Carried 7 | 2 3 7 Class Distribution -------------------- 58% | Mutant 41% | Scavenger-Mutant Dominant Class ---------------- Mutant | -10/Materials Scavenger-Mutant | -9/Materials Resources | -11 -10 -9 ----------- Run | Yrd Mat Mat Matter Collected 872 | 175 136 561 Remotely . | . . . Salvage Created 2177 | . 341 1836 Parts 134 | . 16 118 Haulers Intercepted 2 | . 1 1 Recyclers Shooed 3 | . . 3 Parts Field Recycled . | . . . Retrieved Matter . | . . . Parts Self-Destructed . | . . . Prevented . | . . . Kills | -11 -10 -9 ------- Run | Yrd Mat Mat Combat Hostiles Destroyed 37 | . 7 30 Guns 33 | . 7 26 Cannons 4 | . . 4 Classes Destroyed 11 | . 2 9 Worker 2 | . . 2 Builder 3 | . . 3 Tunneler 1 | . . 1 Hauler 2 | . 1 1 Recycler 4 | . . 4 Operator 2 | . . 2 Watcher 3 | . . 3 Swarmer 3 | . . 3 Grunt 24 | . 7 17 Brawler 1 | . . 1 Sentry 9 | . . 9 Best Kill Streak 7 | . 3 7 Combat Bots Only 4 | . 2 4 Max Kills in Single Turn 2 | . 1 2 Gunslinging 1 | . . 1 Exploded . | . . . Melee . | . . . Uniques/NPCs Destroyed . | . . . Combat | -11 -10 -9 -------- Run | Yrd Mat Mat Hostile Shots Fired 280 | . 46 234 Missed 80 | . 13 67 Damage Taken 2488 | . 427 2061 Core 448 | . 48 400 Absorbed by Shields 78 | . . 78 Regen/Repaired (Parts) 32 | . . 32 Core Remaining (%) 90 | 100 80 . Volleys Fired 153 | . 30 123 Largest 2 | . 2 2 Hottest 136 | . 60 136 Shots Fired 298 | . 56 242 Gun 276 | . 56 220 Cannon 22 | . . 22 Launcher . | . . . Special . | . . . Kinetic 105 | . 29 76 Thermal 185 | . 27 158 Explosive . | . . . Electromagnetic 8 | . . 8 Robot Hit Streak 13 | . 7 13 Robot Miss Streak 5 | . 3 5 Penetration Max . | . . . Secondary Targets 9 | . 2 7 Max Gunslinging Chain 1 | . 1 1 Shots Hit Robots 197 | . 39 158 Core Hits 89 | . 20 69 Critical Kills . | . . . Critical Parts Destroyed . | . . . Critical Strikes 4 | . . 4 Burn 4 | . . 4 Melee Attacks . | . . . Impact . | . . . Slashing . | . . . Piercing . | . . . Sneak Attacks . | . . . Combat Hostiles . | . . . Follow-up Attacks . | . . . Damage Inflicted 2788 | . 455 2333 Guns 2397 | . 455 1942 Cannons 391 | . . 391 Explosions . | . . . Melee . | . . . Ramming . | . . . Kinetic 853 | . 230 623 Thermal 1814 | . 225 1589 Explosive . | . . . Electromagnetic 121 | . . 121 Impact . | . . . Slashing . | . . . Piercing . | . . . Highest Corruption . | . . . Average Corruption . | . . . Corruption Purged . | . . . Corruption Blocked . | . . . Overload Shots . | . . . Overflow Damage . | . . . Projectiles . | . . . Explosions . | . . . Melee . | . . . Knockbacks . | . . . Impact . | . . . Kinetic . | . . . Secondary . | . . . Self-Inflicted Damage . | . . . Shots . | . . . Rammed . | . . . Targets Rammed 1 | . . 1 Kicked 1 | . . 1 Crushed . | . . . Highest Temperature 357 | . 189 357 Average Temperature 59 | . 67 54 Received Heat Transfer 1047 | . 279 768 Siege Activations . | . . . Robots Corrupted . | . . . Combat Hostiles . | . . . Parts Fried . | . . . Impact Corruptions . | . . . Robots Melted . | . . . Combat Hostiles . | . . . Parts Melted 5 | . 1 4 Heat Transferred 4136 | . 500 3636 Parts Sabotaged . | . . . Parts Stolen . | . . . Parts Stripped . | . . . Power Chain Reactions . | . . . Alert | -11 -10 -9 ------- Run | Yrd Mat Mat Peak Influence 454 | . 245 454 Initial 103 | . . 103 Average 160 | . 110 180 Maximum Alert Level 2 | . 1 2 Low Security (%) 72 | 100 86 68 Level 1 23 | . 13 26 Level 2 3 | . . 4 Level 3 . | . . . Level 4 . | . . . Level 5 . | . . . High Security . | . . . Max Security . | . . . Squads Dispatched 4 | . . 4 Investigation 1 | . . 1 Extermination . | . . . Reinforcement 3 | . . 3 Assault . | . . . Garrison . | . . . Intercept . | . . . Searches Triggered . | . . . Construction Impeded . | . . . Haulers Reinforced . | . . . Active Scanning Responses . | . . . Cargo Convoy Interrupts . | . . . Stealth | -11 -10 -9 --------- Run | Yrd Mat Mat Distress Signals 7 | . 3 4 Communications Jammed . | . . . Distress Signals . | . . . Times Spotted 61 | . 14 47 Peak Tracking Total 7 | . 4 7 Tactical Retreats 2 | . 1 1 Traps | -11 -10 -9 ------- Run | Yrd Mat Mat Traps Triggered 1 | . . 1 Indirectly . | . . . Trap Hack Attempts . | . . . Triggered . | . . . Disarmed 1 | . . 1 Reprogrammed . | . . . Reused . | . . . Traps Extracted . | . . . Installed . | . . . Triggered . | . . . Machines | -11 -10 -9 ---------- Run | Yrd Mat Mat Machines Disabled 1 | . . 1 Max in Single Turn 1 | . . 1 Machines Repaired . | . . . Machines Dismantled . | . . . Machines Sabotaged . | . . . Overloaded Fab Kills . | . . . Hacking | -11 -10 -9 --------- Run | Yrd Mat Mat Machines Accessed 10 | . 4 6 Terminals 8 | . 4 4 Fabricators . | . . . Repair Stations 1 | . . 1 Recycling Units . | . . . Scanalyzers 1 | . . 1 Garrison Access . | . . . Total Hacks 34 | . 12 22 Successful 24 | . 7 17 Failed 10 | . 5 5 Catastrophic . | . . . Database Lockouts . | . . . Manual 4 | . 1 3 Terminals 22 | . 12 10 Fabricators . | . . . Repair Stations 2 | . . 2 Recycling Units . | . . . Scanalyzers 10 | . . 10 Garrison Access . | . . . Terminal Hacks 10 | . 6 4 Prototype ID Bank 2 | . 2 . Level Access Points 1 | . 1 . Emergency Access Points 1 | . . 1 Terminal Index 2 | . 1 1 Alert Level 1 | . 1 . Disarm Traps 1 | . . 1 Zone Layout 2 | . 1 1 Fabricator Hacks . | . . . Repair Station Hacks 2 | . . 2 Scan Component 1 | . . 1 Repair 1 | . . 1 Recycling Unit Hacks . | . . . Scanalyzer 10 | . . 10 Insert Component 5 | . . 5 Analyze 5 | . . 5 Garrison Access Hacks . | . . . Unauthorized Hacks 2 | . 1 1 Terminals 2 | . 1 1 Assimilate 1 | . 1 . Botnet 1 | . . 1 Fabricators . | . . . Repair Stations . | . . . Recycling Units . | . . . Scanalyzers . | . . . Garrison Access . | . . . Data Cores Recovered . | . . . Used . | . . . Hacking Detections 7 | . 4 3 Full Trace Events 1 | . 1 . Feedback Events . | . . . Feedback Blocked . | . . . Robot Schematics Acquired . | . . . Robots Built . | . . . Authchips . | . . . Time . | . . . Total Robot Build Rating . | . . . Part Schematics Acquired 5 | . . 5 Parts Built . | . . . Authchips . | . . . Time . | . . . Total Part Build Rating . | . . . Parts Repaired 1 | . . 1 Time 26 | . . 26 Parts Recycled . | . . . Recycled Matter . | . . . Retrieved Matter . | . . . Retrieved Components . | . . . Parts Scanalyzed 5 | . . 5 Part Schematics Acquired 5 | . . 5 Parts Damaged . | . . . Bothacking | -11 -10 -9 ------------ Run | Yrd Mat Mat Used RIF Installer . | . . . Robots Hacked . | . . . Non-combat . | . . . Combat . | . . . Robot Hacks Applied . | . . . Relay Couplers Released . | . . . Fabnet Peak Effective % . | . . . Robots Rewired . | . . . Allies Hacked . | . . . Hacks Repelled . | . . . Allies | -11 -10 -9 -------- Run | Yrd Mat Mat Total Allies 1 | . 1 . Largest Group 1 | . 1 1 Highest-Rated Group 10 | . 10 10 Highest-Rated Ally 10 | . 10 10 Total Orders . | . . . Ally Attacks . | . . . Total Damage . | . . . Kills . | . . . Allies Corrupted . | . . . Allies Melted . | . . . Intel | -11 -10 -9 ------- Run | Yrd Mat Mat Robot Analysis Total . | . . . Derelict Logs Recovered . | . . . Drone Launches . | . . . Drone Recoveries . | . . . Exploration | -11 -10 -9 ------------- Run | Yrd Mat Mat Turns Passed 1670 | 71 287 1312 Spaces Moved 746 | 43 124 579 Core 8 | 7 . 1 Treads 338 | 36 124 178 Legs 400 | . . 400 Wheels . | . . . Hover . | . . . Flight . | . . . Fastest Speed 50 | 50 160 120 Average Speed 149 | 142 160 147 Slowest Speed 450 | 160 160 450 Overloaded Moves . | . . . Propulsion Burnouts . | . . . Robots Hopped . | . . . Cave-ins Triggered . | . . . Exploration Rate (%) 29 | 5 29 54 Regions Visited 2 Branch Regions . Pre-discovered Areas . | . . . Known Exits Taken 1 | . 1 . Unknown Exits Taken 1 | 1 . . Scrap Searched . | . . . Spaces Dug . | . . . Terrain Destroyed . | . . . Melee . | . . . Projectile . | . . . AOE . | . . . Terrain Rammed . | . . . Walls Destroyed . | . . . Machines Disabled . | . . . Actions | -11 -10 -9 --------- Run | Yrd Mat Mat Total 1006 | 50 158 798 Wait 22 | . . 22 Move 744 | 42 123 579 Hop . | . . . Pick Up 18 | 2 2 14 Fast Attach 23 | 6 1 16 Attach 10 | . 1 9 Detach 6 | . . 6 Swap 14 | . 1 13 Drop 15 | . . 15 Fire 153 | . 30 123 Melee . | . . . Ram . | . . . Kick 1 | . . 1 Crush . | . . . Escape Stasis . | . . . Rewire . | . . . Trap . | . . . Miscellaneous . | . . . Route ------- -11/Scrapyard -10/Materials (discovered 3 exits: *Mat x3) -9/Materials (discovered 2 exits: *Mat / *Min) History --------- Turn | Location | Event 7 | -11/Scrapyard | Discovered new exit (range 16) 72 | -11/Scrapyard | Entered Materials 291 | -10/Materials | Discovered new exit (range 13) 315 | -10/Materials | Build established: Mutant 346 | -10/Materials | Identified exit to Materials 359 | -10/Materials | Entered another Materials area 359 | -9/Materials | Accompanied by 1 ally 359 | -9/Materials | Evolved 2 slots: Utility x2 730 | -9/Materials | Lost 4 parts (1p2n1u) 870 | -9/Materials | Discovered new exit (range 7) 880 | -9/Materials | Identified exit to Mines 971 | -9/Materials | Core integrity fell below 50% 995 | -9/Materials | Lost 7 parts (2p2n1u2w) 1243 | -9/Materials | Discovered new exit (range 15) 1261 | -9/Materials | Identified exit to Materials 1262 | -9/Materials | Build established: Scavenger-Mutant 1599 | -9/Materials | Core integrity fell below 20% 1659 | -9/Materials | Repaired Lgt. Ion Engine 1671 | -9/Materials | Destroyed by G-34 Mercenary with Small Laser Last Messages --------------- 01608_ Dropped Rocket Launcher. 01610_ Acquired Adv. Beam Cannon. 01633_ Connecting with Repair Station... >>Scan(Lgt. Ion Engine) Scanning Lgt. Ion Engine... Ready to Repair: Lgt. Ion Engine Rating: 1 Time: 26 >>Repair Repairing Lgt. Ion Engine... ETC: 26 01648_ Y-45 Defender heat damages Hvy. Assault Rifle. 01649_ Y-45 Defender destroyed. 01656_ Acquired 52 matter. 01659_ Repair station completes Lgt. Ion Engine repairs. 01664_ Imp. Ion Engine melted. 01664_ Y-45 Defender destroyed. 01666_ Imp. Aluminum Leg destroyed. 01667_ Y-45 Defender destroyed. Map ----- +----------------------------------------------------+ | ???????????????????????????????????? | | ???????????????????????????????????? | | ???????????????????????????????????? | | ???????????????????????????????????? | | ???????????????????????????????????? | | ???????????????????????????????????? | | ???????????????????????????????????? | | ???????????????????????????????????? | | ???????????????????????????????????? | | ???????????????????????????????????? | | ???????????????????????????????????? | | ???????????????????????????????????? | | ???????????????????????????????????? | | ???????????????????????????????????? | | ???????????????????????????????????? | | ???????????????????????????????????? | | ??????????????? ??????????????????? | | ?????????????# ?????????????????? | | ?????????????# ?????????????????? | | ?????????????# ?????????????????? | | ?????????????? ?#########??????? | | ??????????????# #?# ! #??????? | | ??????????????# #?# """#??????? | | ??????????????# #?# *R"#??????? | | ??????????????# #?# ["""#??????? | | ?????????????## ### ]!@=[#??????? | | ?????????????# #######g###?????? | | ?????????????# %!%#?????? | | ?????????????# [[#?????? | | ?????????????# !!#?????? | | ?????????????# [[ #?????? | | ?????????????## [= #?????? | | ????##????????#]= +?????? | | ????# T ??????#]=] #?????? | | ????# ????# = """ #?????? | | ????# ??# """ #????? | | ?#### [[! # """ #????? | | # """ [[ + #????? | | # """ [[ # ] #????? | | #?""" ??# #????? | | # ????## ###### #????? | | ### ???????# #????? #????? | | ????????????# #?????? ?????? | | ????????????# #???????##??????? | | ???????????### ###?#######+###?? | | ???????????# #?T #?? | | /############# # #?? | | %%= # #? | | [% + #?? | | =!! # "" ??? | +----------------------------------------------------+ Best States ------------- Heat Dissipation 42 Energy Generation 12 Energy Capacity 265 Matter Stores 300 Matter Capacity 300 Sight Range 16 Robot Scan Range 14 Terrain Scan Density 10 Evasion (%) 55 Recoil Reduction 2 Item Schematics ----------------- Imp. EM Shotgun | -9/Materials | Scanalyzed Assault Rifle | -9/Materials | Scanalyzed Lgt. Assault Rifle | -9/Materials | Scanalyzed Lgt. Ion Engine | -9/Materials | Scanalyzed Sml. Storage Unit | -9/Materials | Scanalyzed Robot Schematics ------------------ None Fabricated ------------ Nothing Alien Tech Used ----------------- None Achievements -------------- None Challenges ------------ None Game ------ Seed LongswordImprinterMace Manual? 0 Play Time 00:14:38 Cumulative 93.0 hours Start 2024.07.23 @ 09:20:02 End 2024.07.24 @ 11:21:09 Sessions 4 Manual Loads 0 Difficulty Rogue Special Mode None Game No. 103 Rogue 103 Adventurer 0 Explorer 0 Win Type - Total 1 Types 1/0/0/0/0/0/0/0/0 Lore% 55 Gallery% 62 Achievement% 43 Wizard Run 0 Options --------- Layout 0 ASCII 0 Keyboard 1 Movement Numpad Keybinds 0 Fullscreen 2 Font 18/SmallcapsGlow Map View 76x50 Zoom Use 0% Tactical HUD 1 Map Filters NONE Filters NONE Steam 1 RUN: 89aa8afe-f3e2-4d86-a96c-5a6847106f5f